bitfinex-derivatives/quotes_ETHF0:USTF0_20241018
["timestamp","ask_amount","ask_price","bid_price","bid_amount"]
[1729261471569,2.97,2628.8,2628.3,3.2078]
[1729261471771,0.3805,2628.5,2628.3,3.58832]
[1729261472178,2.9134,2629.0,2628.3,3.2078]
[1729261472564,2.9134,2629.0,2628.5,0.38049]
[1729261472768,2.9134,2629.0,2628.3,3.2078]
[1729261473076,0.38048,2628.7,2628.3,3.2078]
[1729261473384,2.9134,2629.0,2628.3,3.2078]
[1729261473678,2.9134,2629.0,2628.4,0.38051]
[1729261473679,0.38049,2628.6,2628.4,0.38051]
[1729261475272,2.97,2628.9,2628.3,3.2078]
[1729261475575,0.95114,2628.8,2628.3,3.2078]
[1729261475778,0.38051,2628.4,2628.3,3.2078]
[1729261476380,7.72609,2628.4,2627.6,3.2078]
[1729261476578,2.9987,2628.3,2627.6,3.87130729]
[1729261476881,0.38054,2628.2,2627.9,0.38058]
[1729261477083,2.9987,2628.3,2627.9,0.38058]
[1729261477084,0.38057,2628.1,2627.9,0.38058]
[1729261477682,2.9987,2628.3,2627.6,3.87130729]
[1729261477879,2.9987,2628.3,2627.7,2.97]
[1729261478073,0.38055,2628.2,2628.0,0.38056]
[1729261479283,2.9987,2628.3,2627.9,3.2078]
[1729261479479,1.5281,2628.3,2628.2,0.38054]
[1729261479788,0.38049,2628.6,2628.4,0.38051]
[1729261479990,0.38048,2628.6,2628.4,0.38051]
[1729261480385,1.512,2628.7,2628.4,0.38051]
[1729261480577,0.38049,2628.6,2628.5,0.3805]
[1729261482888,1.512,2628.7,2628.1,0.64427215]
[1729261483085,1.512,2628.7,2627.8,0.38059]
[1729261483086,0.38059,2627.9,2627.8,0.38059]
[1729261483281,2.97,2628.2,2627.7,3.2078]
[1729261483585,0.38058,2628.0,2627.9,0.38058]
[1729261483887,3.21936,2628.1,2628.0,0.38057]
[1729261484185,3.21936,2628.1,2627.9,0.38057]
[1729261484386,0.38057,2628.0,2627.9,0.38057]
[1729261484584,3.21936,2628.1,2627.9,0.38057]
[1729261484781,3.21936,2628.1,2627.9,0.38058]
[1729261484987,1.83906,2628.1,2627.7,3.2078]
[1729261485189,0.38057,2628.0,2627.9,0.38058]
[1729261485383,1.4585,2628.1,2627.9,0.38058]
[1729261485584,0.38057,2628.0,2627.9,0.38058]
[1729261485990,0.38057,2628.0,2627.8,0.38059]
[1729261486189,0.38058,2627.9,2627.8,0.3806]
[1729261486389,0.38058,2627.9,2627.7,3.2078]
[1729261486585,0.3806,2627.8,2627.7,3.5884]
[1729261487087,1.4585,2628.1,2627.7,3.2078]
[1729261487478,0.3806,2627.8,2627.7,3.2078]
[1729261487684,1.4585,2628.1,2627.7,3.58841]
[1729261487879,0.3806,2627.8,2627.7,3.58841]
[1729261488390,0.3806,2627.8,2627.7,3.2078]
[1729261490781,0.95152,2627.8,2627.4,2.14197908]
[1729261490987,0.95152,2627.8,2627.4,2.52262908]
[1729261491186,0.38064,2627.6,2627.4,2.52262908]
[1729261491590,0.38064,2627.6,2627.4,5.73042908]
[1729261491987,0.38064,2627.5,2627.4,5.34977908]
[1729261492294,0.38063,2627.6,2627.4,5.73041908]
[1729261493488,0.3806,2627.8,2627.4,5.73041908]
[1729261493793,0.38064,2627.6,2627.4,5.73041908]
[1729261493987,0.95148,2627.9,2627.4,5.73041908]
[1729261494189,0.38064,2627.5,2627.4,4.7059]
[1729261494395,0.95148,2627.9,2627.4,4.7059]
[1729261494588,0.38064,2627.6,2627.4,5.08655]
[1729261495090,0.95148,2627.9,2627.4,5.08655]
[1729261495091,0.38064,2627.5,2627.4,5.08655]
[1729261496091,0.38064,2627.5,2627.4,3.2078]
[1729261496491,0.3807,2627.1,2627.0,4.5847]
[1729261496800,0.95169,2627.3,2626.8,1.4737]
[1729261497000,0.38072,2627.0,2626.8,1.85443]
[1729261497191,0.38072,2627.0,2626.9,0.38073]
[1729261497401,0.38071,2627.1,2626.9,0.38073]
[1729261497588,0.38071,2627.1,2626.8,1.4737]
[1729261497795,0.38071,2627.1,2626.8,2.12843049]
[1729261498295,1.4758,2627.3,2627.0,0.38071]
[1729261498496,1.4758,2627.3,2626.8,2.12843049]
[1729261498694,1.4758,2627.3,2627.1,0.3807]
[1729261498695,0.38069,2627.2,2627.1,0.3807]
[1729261498897,0.38069,2627.2,2627.0,0.3807]
[1729261499402,1.85648,2627.3,2627.1,0.3807]
[1729261499597,0.38069,2627.2,2627.0,3.5885]
[1729261499797,1.4758,2627.3,2627.0,3.2078]
[1729261500001,0.38069,2627.2,2627.1,0.3807]
[1729261500192,1.4758,2627.3,2627.0,3.2078]
[1729261500394,1.4758,2627.3,2627.0,3.58851]
[1729261500597,1.85648,2627.3,2627.0,6.1778]
[1729261500793,1.48768656,2627.6,2627.2,2.97]
[1729261501098,0.38063,2627.6,2627.4,0.38066]
[1729261501398,0.38062,2627.7,2627.5,0.38064]
[1729261501603,3.2078,2627.8,2627.4,0.38065]
[1729261501910,0.38064,2627.5,2627.4,0.38065]
[1729261502199,0.38064,2627.5,2627.3,8.03086]
[1729261502405,0.38066,2627.4,2627.3,3.2078]
[1729261502806,0.38066,2627.4,2627.0,1.4602]
[1729261502807,0.3807,2627.1,2627.0,1.84091]
[1729261502993,0.3807,2627.1,2627.0,1.4602]
[1729261503195,0.38071,2627.0,2626.9,3.2078]
[1729261503800,1.78851,2627.0,2626.9,3.2078]
[1729261504898,5.59491,2627.0,2626.9,3.2078]
[1729261505208,0.3808,2626.5,2626.2,1.84392]
[1729261505393,0.95186,2626.9,2626.2,1.4631]
[1729261505394,2.97,2626.7,2626.2,1.4631]
[1729261505594,2.97,2626.7,2626.0,3.2078]
[1729261505595,0.38082,2626.3,2626.0,3.2078]
[1729261505800,2.97,2626.3,2625.8,1.4631]
[1729261506101,0.38089,2625.8,2625.5,0.38093]
[1729261506293,0.38092,2625.6,2625.4,3.2078]
[1729261506494,2.97,2625.9,2625.4,3.2078]
[1729261506808,2.97,2625.6,2625.1,0.38098]
[1729261507201,0.38098,2625.2,2625.0,0.65952422]
[1729261507397,2.97,2625.4,2624.8,3.2078]
[1729261507612,0.38098,2625.2,2624.9,0.38102]
[1729261507901,0.38098,2625.2,2624.8,3.2078]
[1729261507902,0.38097,2625.3,2625.0,0.381]
[1729261508110,1.5044,2625.5,2624.8,3.85365363]
[1729261508405,1.5044,2625.5,2624.8,3.2078]
[1729261508406,0.38102,2624.9,2624.8,3.2078]
[1729261509015,0.38102,2624.9,2624.3,0.6703822]
[1729261509016,3.8096,2624.9,2624.3,0.6703822]
[1729261509196,3.66,2624.7,2624.0,3.2078]
[1729261509394,1.4864,2624.8,2624.0,3.87353812]
[1729261509395,3.66,2624.4,2624.0,3.87353812]
[1729261509595,1.4864,2624.8,2624.0,3.58894]
[1729261509596,3.2078,2624.7,2624.0,3.58894]
[1729261509801,3.66,2624.6,2624.0,3.2078]
[1729261510210,0.38113,2624.2,2624.0,3.2078]
[1729261510508,0.38112,2624.3,2624.0,3.2078]
[1729261510705,3.66,2624.6,2624.0,3.2078]
[1729261510706,0.38108,2624.5,2624.0,3.2078]
[1729261510905,0.38111,2624.3,2624.0,3.2078]
[1729261511099,0.3811,2624.4,2624.0,3.2078]
[1729261511300,0.38111,2624.3,2624.0,3.2078]
[1729261511496,3.66,2624.3,2624.0,3.2078]
[1729261511715,3.66,2624.1,2623.6,3.2078]
[1729261512005,3.66,2623.8,2623.6,3.2078]
[1729261513114,1.86136,2624.0,2623.6,3.2078]
[1729261513503,1.4802,2624.0,2623.6,3.2078]
[1729261514402,1.4802,2624.0,2623.4,0.38124]
[1729261514605,1.86136,2624.0,2623.4,0.38124]
[1729261515011,1.86136,2624.0,2623.4,3.2078]
[1729261515217,1.86136,2624.0,2623.4,3.58902]
[1729261515408,1.4802,2624.0,2623.4,3.2078]
[1729261515804,1.4802,2624.0,2623.9,0.38116]
[1729261516103,0.38108,2624.5,2624.0,0.38114]
[1729261516104,0.38109,2624.5,2624.0,0.38114]
[1729261516502,5.0678,2624.6,2624.2,0.38111]
[1729261516699,5.0678,2624.6,2624.0,3.2078]
[1729261516902,5.0678,2624.6,2624.3,0.38111]
[1729261517100,5.0678,2624.6,2624.0,3.2078]
[1729261517315,1.4078,2624.6,2624.5,0.38108]
[1729261517607,1.4078,2624.6,2624.0,3.2078]
[1729261517802,1.4078,2624.6,2624.5,0.38108]
[1729261518001,3.66,2625.1,2624.3,3.2078]
[1729261518204,3.66,2625.1,2625.0,0.381]
[1729261518405,0.38101,2625.0,2624.7,0.38104]
[1729261518612,3.66,2625.1,2624.8,0.38103]
[1729261518912,4.041,2625.1,2624.6,3.2078]
[1729261519109,4.041,2625.1,2624.9,0.38101]
[1729261520010,3.66,2625.1,2625.0,0.381]
[1729261520212,3.66,2625.1,2624.7,0.95263]
[1729261520416,1.4228,2625.2,2624.8,0.95259]
[1729261520608,1.4228,2625.2,2625.1,0.38099]
[1729261520808,0.85095293,2625.2,2625.1,0.38099]
[1729261523610,0.85095293,2625.2,2624.9,3.2078]
[1729261523611,8.32055293,2625.2,2624.9,3.2078]
[1729261523815,0.38101,2625.0,2624.8,0.38102]
[1729261524315,0.38101,2625.0,2624.7,0.38104]
[1729261524316,7.4696,2624.9,2624.7,0.38104]
[1729261524513,3.66,2624.9,2624.7,0.38104]
[1729261524708,7.4696,2624.9,2624.7,0.38104]
[1729261524907,7.85063,2624.9,2624.5,0.38108]
[1729261525108,4.04103,2624.9,2624.6,0.38106]
[1729261525514,3.66,2624.9,2624.7,0.38105]
[1729261525723,3.66,2624.9,2624.7,0.38104]
[1729261526022,3.8096,2624.9,2624.7,0.38104]
[1729261526218,0.38101,2625.0,2624.7,0.38104]
[1729261527910,4.04099,2625.1,2624.5,0.38108]
[1729261528111,0.38102,2624.9,2624.4,3.2078]
[1729261528321,0.38101,2625.0,2624.7,0.38104]
[1729261528626,6.8678,2624.9,2624.1,3.2078]
[1729261528913,3.66,2624.3,2623.5,0.66119276]
[1729261529115,3.66,2624.3,2623.3,3.2078]
[1729261529314,0.38115,2624.0,2623.7,0.38119]
[1729261529520,3.66,2624.1,2623.3,3.2078]
[1729261529719,0.38116,2624.0,2623.7,0.38119]
[1729261530820,3.66,2624.0,2623.6,3.589]
[1729261531016,3.66,2624.0,2623.5,3.2078]
[1729261531518,4.04115,2624.0,2623.7,0.38118]
[1729261532009,0.38117,2623.9,2623.5,3.2078]
[1729261532210,3.66,2624.0,2623.5,3.58901]
[1729261532417,0.38118,2623.8,2623.5,3.58901]
[1729261532619,3.66,2624.0,2623.6,0.3812]
[1729261532821,0.38118,2623.9,2623.6,0.3812]
[1729261533712,0.38118,2623.9,2623.7,0.38119]
[1729261534320,0.38118,2623.9,2623.6,0.3812]
[1729261534514,1.33393,2624.2,2623.6,0.3812]
[1729261534714,0.38117,2623.9,2623.6,0.3812]
[1729261534918,3.2078,2624.3,2623.5,3.2078]
[1729261535120,3.2078,2624.3,2623.8,3.2078]
[1729261535423,1.90455,2625.7,2624.1,0.38113]
[1729261535424,0.3811,2624.4,2624.1,0.38113]
[1729261535615,0.3811,2624.4,2624.2,0.38112]
[1729261535816,0.38109,2624.5,2624.2,0.38112]
[1729261536017,3.2078,2624.7,2623.9,3.815]
[1729261536224,1.3671,2625.0,2624.6,0.38105]
[1729261536412,0.38102,2624.9,2624.6,0.38105]
[1729261536611,0.38104,2624.8,2624.6,0.38105]
[1729261537017,0.38106,2624.7,2624.5,3.58887]
[1729261537221,0.38102,2624.9,2624.5,3.2078]
[1729261537519,2.31963,2625.0,2624.5,3.2078]
[1729261537821,0.38105,2624.8,2624.6,0.38106]
[1729261538022,0.38106,2624.7,2624.5,3.58887]
[1729261538224,0.38106,2624.7,2624.5,3.2078]
[1729261538414,0.38106,2624.7,2624.5,3.58888]
[1729261538616,2.31963,2625.0,2624.5,3.2078]
[1729261538814,0.38106,2624.6,2624.5,3.2078]
[1729261539430,4.19146,2624.6,2624.5,3.2078]
[1729261539730,7.85146,2624.6,2624.5,3.2078]
[1729261540224,7.85146,2624.6,2624.2,0.38112]
[1729261540225,7.4704,2624.6,2624.2,0.38112]
[1729261540422,7.4704,2624.6,2624.2,0.38111]
[1729261540423,3.66,2624.6,2624.2,0.38111]
[1729261540619,3.66,2624.6,2624.1,3.2078]
[1729261540620,0.3811,2624.4,2624.1,3.2078]
[1729261540815,3.66,2624.6,2624.1,3.58893]
[1729261541025,0.38112,2624.2,2624.1,3.2078]
[1729261541226,0.38117,2623.9,2623.7,0.38118]
[1729261541430,0.38118,2623.8,2623.7,0.38118]
[1729261541625,4.61281,2624.2,2623.5,2.8582]
[1729261541824,0.38119,2623.7,2623.6,0.3812]
[1729261542124,4.61281,2624.2,2623.5,1.463]
[1729261542125,7.82061,2624.2,2623.5,1.463]
[1729261542525,0.38118,2623.8,2623.6,0.3812]
[1729261542733,7.82061,2624.2,2623.5,1.463]
[1729261543030,0.38119,2623.8,2623.5,1.463]
[1729261543212,0.38121,2623.6,2623.5,1.463]
[1729261543417,0.38122,2623.6,2623.4,1.83253]
[1729261543617,0.38122,2623.5,2623.4,1.4513]
[1729261543827,0.95295,2623.8,2623.3,3.2078]
[1729261543828,0.38124,2623.4,2623.3,3.2078]
[1729261544122,3.66,2623.7,2623.3,3.2078]
[1729261544317,4.04124,2623.4,2623.3,3.2078]
[1729261545727,0.3813,2623.0,2622.9,1.5042]
[1729261545927,0.95307,2623.5,2622.5,1.5042]
[1729261545928,0.38135,2622.7,2622.5,1.5042]
[1729261546130,3.66,2622.7,2622.3,3.2078]
[1729261546432,3.66,2622.7,2622.2,1.4423]
[1729261546433,6.8678,2622.9,2622.2,1.4423]
[1729261546617,0.38135,2622.7,2622.4,0.38137]
[1729261546818,0.38135,2622.6,2622.4,0.38137]
[1729261547034,0.38135,2622.6,2622.3,3.58919]
[1729261547331,0.38137,2622.5,2622.3,3.2078]
[1729261547632,0.38135,2622.7,2622.4,0.38138]
[1729261547834,5.02592,2622.9,2622.6,0.38134]
[1729261548024,1.4368,2622.9,2622.3,3.2078]
[1729261548925,0.38133,2622.8,2622.3,3.2078]
[1729261549121,0.38133,2622.8,2622.4,0.38137]
[1729261549122,0.38134,2622.8,2622.4,0.38137]
[1729261549322,0.38134,2622.8,2622.5,0.38137]
[1729261549833,0.38135,2622.7,2622.4,0.38137]
[1729261550025,5.031,2623.0,2622.3,3.2078]
[1729261550228,1.77622,2623.6,2622.8,0.95329]
[1729261550433,1.395,2623.6,2622.9,1.5092]
[1729261550634,3.66,2624.0,2623.2,3.2078]
[1729261550933,3.66,2624.0,2623.6,0.3812]
[1729261551128,3.66,2624.0,2623.4,3.2078]
[1729261551327,2.39743,2624.2,2622.9,1.5092]
[1729261551328,0.38127,2623.2,2622.9,1.5092]
[1729261551527,5.055,2623.5,2622.8,1.3685]
[1729261551728,0.3813,2623.0,2622.8,1.3685]
[1729261552031,0.3813,2623.0,2622.7,3.2078]
[1729261552032,0.38132,2622.8,2622.7,3.2078]
[1729261552422,0.38132,2622.9,2622.7,3.2078]
[1729261552621,3.66,2623.2,2622.7,3.2078]
[1729261552822,0.38131,2622.9,2622.7,3.2078]
[1729261553023,0.38132,2622.8,2622.7,3.2078]
[1729261553240,3.66,2623.2,2622.7,3.2078]
[1729261553534,0.38132,2622.9,2622.7,3.2078]
[1729261554133,0.38132,2622.8,2622.7,3.2078]
[1729261554638,0.38138,2622.5,2622.3,3.2078]
[1729261554833,2.8064,2622.8,2622.3,3.2078]
[1729261555032,0.38138,2622.4,2622.3,3.2078]
[1729261555225,0.38137,2622.5,2622.2,1.7499]
[1729261555425,2.8064,2622.8,2622.2,1.3685]
[1729261555633,0.38137,2622.5,2622.3,0.38139]
[1729261555826,2.8064,2622.8,2622.2,4.95771]
[1729261556034,0.38137,2622.5,2622.3,0.38139]
[1729261556232,2.8064,2622.8,2622.2,4.5763]
[1729261556438,0.38137,2622.6,2622.3,0.38139]
[1729261556631,0.38137,2622.5,2622.3,0.38139]
[1729261557933,0.38136,2622.6,2622.3,0.38139]
[1729261558229,2.8064,2622.8,2622.2,4.5763]
[1729261558431,2.8064,2622.8,2622.4,0.38137]
[1729261558432,0.38135,2622.7,2622.4,0.38137]
[1729261558741,0.38136,2622.6,2622.4,0.38138]
[1729261558932,2.8064,2622.8,2622.2,4.5763]
[1729261559236,2.8064,2622.8,2622.4,0.38137]
[1729261559430,0.38135,2622.7,2622.4,0.38137]
[1729261560337,0.38135,2622.7,2622.2,4.5763]
[1729261560637,0.38136,2622.6,2622.4,0.38138]
[1729261560832,2.8064,2622.8,2622.2,4.5763]
[1729261561032,2.8064,2622.8,2622.3,0.38139]
[1729261561033,0.38137,2622.5,2622.3,0.38139]
[1729261561236,0.38138,2622.5,2622.3,0.3814]
[1729261561537,2.8064,2622.8,2622.2,4.5763]
[1729261561934,0.38135,2622.6,2622.3,0.38139]
[1729261562238,0.38135,2622.6,2622.2,4.9577]
[1729261562442,2.98,2622.7,2622.2,4.5763]
[1729261562633,0.3814,2622.4,2622.2,4.5763]
[1729261562832,2.98,2622.7,2622.2,4.5763]
[1729261563037,0.38138,2622.5,2622.3,0.38139]
[1729261563233,0.38136,2622.6,2622.4,0.38137]
[1729261563541,0.38136,2622.6,2622.4,0.38138]
[1729261563742,3.93336,2622.7,2622.2,4.5763]
[1729261564233,0.38139,2622.4,2622.2,4.95771]
[1729261564541,3.3614,2622.3,2622.2,3.2078]
[1729261564939,3.3614,2622.3,2621.8,1.4017]
[1729261564940,0.38146,2621.9,2621.8,1.4017]
[1729261565344,0.38145,2622.0,2621.8,1.78317]
[1729261565645,2.98,2622.1,2621.5,2.01232221]
[1729261565841,2.98,2622.1,2621.7,0.38148]
[1729261565842,0.38146,2621.9,2621.7,0.38148]
[1729261566032,42.2771,2622.2,2621.7,3.2078]
[1729261566341,0.38144,2622.0,2621.8,0.38146]
[1729261566542,42.2771,2622.2,2621.7,3.2078]
[1729261566739,43.7777,2622.2,2621.7,3.2078]
[1729261566940,0.38146,2621.9,2621.7,3.58928]
[1729261567136,2.9777,2622.2,2621.7,3.2078]
[1729261567338,0.38147,2621.9,2621.7,3.2078]
[1729261567539,0.38147,2621.8,2621.7,3.2078]
[1729261568034,3.36147,2621.8,2621.7,3.2078]
[1729261568728,0.38147,2621.8,2621.7,3.2078]
[1729261568932,7.17587,2621.8,2621.7,3.2078]
[1729261569634,6.7944,2621.8,2621.4,3.2078]
[1729261569835,2.98,2621.4,2621.1,3.2078]
[1729261570038,0.38153,2621.5,2621.3,0.38154]
[1729261570238,2.98,2621.8,2621.1,3.2078]
[1729261570541,3.93369,2621.8,2621.1,3.2078]
[1729261570729,0.38148,2621.8,2621.6,0.38149]
[1729261571441,6.1878,2622.0,2621.7,0.38148]
[1729261571743,6.1878,2622.0,2621.4,3.2078]
[1729261572044,0.38151,2621.5,2621.4,3.2078]
[1729261572539,0.3815,2621.7,2621.5,0.38151]
[1729261572735,0.38151,2621.6,2621.4,3.58932]
[1729261572928,0.38148,2621.7,2621.4,3.58933]
[1729261573135,2.98,2621.8,2621.4,3.2078]
[1729261573539,0.38151,2621.5,2621.4,3.2078]
[1729261573740,2.98,2621.6,2621.4,3.2078]
[1729261573940,2.98,2621.8,2621.4,3.2078]
[1729261574142,3.2078,2622.0,2621.4,3.2078]
[1729261574143,6.1878,2622.0,2621.4,3.2078]
[1729261574442,0.38146,2621.9,2621.5,0.38151]
[1729261574642,0.38149,2621.7,2621.4,3.2078]
[1729261575041,0.38147,2621.8,2621.7,0.38148]
[1729261575235,5.9577,2622.2,2621.5,3.93379]
[1729261575447,0.38144,2622.1,2621.8,3.2078]
[1729261575634,0.38144,2622.1,2622.0,0.38144]
[1729261575833,3.2078,2622.4,2621.8,3.2078]
[1729261576032,3.2078,2622.4,2621.8,4.16147]
[1729261576237,0.38141,2622.3,2622.2,0.38141]
[1729261576634,3.36137,2622.5,2622.4,0.38138]
[1729261577352,0.38135,2622.6,2622.5,0.38137]
[1729261577546,0.95328,2623.0,2622.5,3.2078]
[1729261577547,2.98,2623.0,2622.5,3.2078]
[1729261577738,0.3813,2623.0,2622.9,0.38131]
[1729261577938,41.1813,2623.0,2622.9,0.38131]
[1729261578440,0.3813,2623.0,2622.9,0.38131]
[1729261578643,3.36128,2623.2,2623.1,0.38128]
[1729261578838,2.822,2623.3,2622.8,4.16109]
[1729261579035,1.3962,2623.3,2623.2,0.38127]
[1729261580337,40.8,2623.4,2623.3,0.38125]
[1729261580647,4.4201,2623.7,2623.1,3.2078]
[1729261580944,0.38123,2623.5,2623.4,0.38123]
[1729261581148,40.8,2623.5,2623.4,0.38123]
[1729261581841,41.18122,2623.5,2623.4,0.38123]
[1729261582240,40.8,2623.5,2623.4,0.38123]
[1729261582444,41.18122,2623.5,2623.4,0.38123]
[1729261582648,40.8,2623.5,2623.4,0.38123]
[1729261583151,1.4401,2623.7,2623.6,0.38121]
[1729261583645,42.62129,2623.7,2623.6,0.38121]
[1729261583840,42.62129,2623.7,2623.5,0.38122]
[1729261583841,0.38122,2623.6,2623.5,0.38122]
[1729261584245,42.2401,2623.7,2623.1,3.2078]
[1729261584459,42.2401,2623.7,2623.6,0.38121]
[1729261584460,40.8,2623.7,2623.6,0.38121]
[1729261584943,3.2078,2624.0,2623.9,0.38116]
[1729261585341,0.38117,2623.9,2623.8,0.38117]
[1729261585544,3.2078,2624.0,2623.7,0.38119]
[1729261585749,4.65113327,2624.4,2623.6,2.8868]
[1729261585949,0.38117,2623.9,2623.7,0.38119]
[1729261586144,0.38118,2623.8,2623.7,0.38119]
[1729261586745,0.38118,2623.8,2623.6,1.3814]
[1729261586746,40.8,2624.2,2623.6,1.3814]
[1729261586951,0.38116,2623.9,2623.8,0.38117]
[1729261587141,0.38114,2624.1,2623.9,0.38115]
[1729261587545,40.8,2624.2,2623.9,0.38115]
[1729261587750,0.38115,2624.0,2623.9,0.38115]
[1729261588341,0.38114,2624.1,2623.9,0.38115]
[1729261588543,0.38114,2624.1,2623.6,1.3814]
[1729261588544,0.38115,2624.1,2623.6,1.3814]
[1729261588742,0.38115,2624.1,2623.9,0.38115]
[1729261589041,0.38116,2624.0,2623.9,0.38116]
[1729261590347,0.38118,2623.8,2623.7,0.38119]
[1729261590549,3.66,2624.1,2623.6,1.3814]
[1729261590750,3.66,2624.1,2623.7,0.38119]
[1729261590950,0.38118,2623.9,2623.7,0.38119]
[1729261591254,0.38118,2623.8,2623.7,0.38119]
[1729261591955,3.66,2624.1,2623.7,0.38119]
[1729261592141,0.38118,2623.9,2623.8,0.38118]
[1729261592449,0.38118,2623.8,2623.7,0.38119]
[1729261593050,0.38118,2623.8,2623.6,1.3814]
[1729261593051,0.38118,2623.8,2623.6,1.7626]
[1729261593561,3.66,2624.1,2623.6,1.3814]
[1729261593748,0.38121,2623.6,2623.5,3.2078]
[1729261594653,0.38122,2623.6,2623.4,0.38123]
[1729261595052,0.95293,2623.9,2623.2,4.7132]
[1729261595241,0.38123,2623.5,2623.3,0.38125]
[1729261595646,0.38124,2623.4,2623.2,5.09446]
[1729261595958,0.38125,2623.4,2623.2,5.09446]
[1729261596151,0.38125,2623.3,2623.2,4.7132]
[1729261596749,0.38125,2623.4,2623.2,5.09447]
[1729261596960,1.4212,2623.7,2623.2,4.7132]
[1729261597559,0.38125,2623.3,2623.2,3.2078]
[1729261597956,1.4212,2623.7,2623.2,3.2078]
[1729261598160,0.38123,2623.5,2623.3,0.38124]
[1729261598767,1.4212,2623.7,2623.2,3.2078]
[1729261598948,5.1352,2623.8,2623.2,3.2078]
[1729261599153,0.38122,2623.6,2623.4,0.38123]
[1729261599353,1.4418,2623.7,2623.2,3.2078]
[1729261599560,0.38123,2623.5,2623.3,0.38124]
[1729261600156,0.38123,2623.5,2623.3,0.38125]
[1729261600554,0.38125,2623.4,2623.2,3.58906]
[1729261600756,1.4418,2623.7,2623.2,3.2078]
[1729261601051,0.38121,2623.6,2623.4,0.38123]
[1729261601446,0.38121,2623.6,2623.5,0.38122]
[1729261601854,0.38121,2623.6,2623.2,3.2078]
[1729261602047,1.4418,2623.7,2623.4,0.38123]
[1729261602359,0.38121,2623.6,2623.5,0.38122]
[1729261602547,0.38121,2623.6,2623.4,0.38123]
[1729261602548,0.38122,2623.6,2623.4,0.38123]
[1729261603153,0.38122,2623.5,2623.4,0.38123]
[1729261603358,1.4418,2623.7,2623.2,3.2078]
[1729261603560,0.38123,2623.5,2623.4,0.38124]
[1729261604155,0.38121,2623.6,2623.5,0.38122]
[1729261604362,1.4418,2623.7,2623.5,0.38122]
[1729261604661,1.823,2623.7,2623.5,0.38121]
[1729261604866,0.38121,2623.6,2623.5,0.38121]
[1729261606058,1.823,2623.7,2623.6,0.38121]
[1729261606457,0.38117,2623.9,2623.6,3.8112]
[1729261606663,0.38117,2623.9,2623.8,0.38117]
[1729261606968,3.36115,2624.1,2624.0,0.38115]
[1729261609362,2.98,2624.1,2624.0,0.38115]
[1729261609565,3.36114,2624.1,2624.0,0.38115]
[1729261610377,41.18113,2624.2,2624.1,0.38114]
[1729261610967,40.8,2624.2,2623.8,4.16075]
[1729261611172,0.38115,2624.1,2624.0,0.38114]
[1729261612864,40.8,2624.2,2624.1,0.38114]
[1729261613275,40.8,2624.2,2624.1,3.58894]
[1729261613660,40.8,2624.2,2624.1,3.2078]
[1729261613661,43.78,2624.2,2624.1,3.2078]
[1729261613857,49.0441,2624.2,2623.8,3.2078]
[1729261614171,0.38116,2623.9,2623.8,3.2078]
[1729261615164,0.95289,2624.0,2623.6,0.38121]
[1729261615369,0.95289,2624.0,2623.5,0.38121]
[1729261615370,0.38121,2623.6,2623.5,0.38121]
[1729261615576,2.98,2623.9,2623.5,0.38121]
[1729261615958,2.98,2623.9,2623.5,0.38122]
[1729261615959,0.3812,2623.7,2623.5,0.38122]
[1729261616271,0.38118,2623.8,2623.7,0.38119]
[1729261616768,43.643,2624.2,2623.7,0.38119]
[1729261616769,0.38116,2624.0,2623.7,0.38119]
[1729261616971,42.2537,2624.2,2623.6,4.6378]
[1729261617171,2.98,2624.1,2623.8,0.38117]
[1729261617371,0.38116,2624.0,2623.8,0.38117]
[1729261617569,0.38116,2623.9,2623.8,0.38117]
[1729261618559,0.38119,2623.8,2623.7,0.38119]
[1729261618860,0.3812,2623.7,2623.6,0.3812]
[1729261619062,2.98,2623.9,2623.4,1.4125]
[1729261619266,0.38118,2623.8,2623.6,0.3812]
[1729261619475,0.38119,2623.7,2623.6,0.3812]
[1729261619672,0.38118,2623.8,2623.7,0.38119]
[1729261620065,0.99331433,2624.1,2623.6,3.2078]
[1729261620262,0.99331433,2624.0,2623.6,4.16081]
[1729261620466,1.37446433,2624.1,2624.0,0.38115]
[1729261620662,0.99331433,2624.1,2623.6,4.16081]
[1729261620863,0.38115,2624.0,2623.9,0.38116]
[1729261621277,1.37446433,2624.0,2623.9,0.38116]
[1729261621484,0.38115,2624.0,2623.9,0.38116]
[1729261621771,0.38118,2623.8,2623.7,0.38119]
[1729261621978,0.99331433,2624.0,2623.6,3.2078]
[1729261622168,1.37445433,2624.1,2623.9,0.38116]
[1729261622477,1.37446433,2624.0,2623.9,0.38116]
[1729261622666,0.99331433,2624.0,2623.9,0.38116]
[1729261622863,1.37446433,2624.0,2623.9,0.38116]
[1729261623371,1.48997149,2624.0,2623.9,0.38116]
[1729261623876,1.87112149,2624.0,2623.9,0.38116]
[1729261624285,0.38118,2623.8,2623.7,0.38119]
[1729261624481,0.38121,2623.6,2623.5,3.2078]
[1729261624782,1.87830919,2623.6,2623.5,3.2078]
[1729261625280,0.38122,2623.5,2623.4,0.38124]
[1729261625474,1.87835455,2623.5,2623.3,0.38125]
[1729261625784,0.99808921,2623.4,2623.3,0.38125]
[1729261626079,1.37932921,2623.4,2623.3,0.38125]